bitfinex-derivatives/quotes_BNBF0:USTF0_20250511
["timestamp","ask_amount","ask_price","bid_price","bid_amount"]
[1746930833959,0.24650519,664.0,663.5,0.824]
[1746930834156,0.24650519,663.99,663.5,0.824]
[1746930834658,1.94906436,663.93,663.5,0.824]
[1746930834957,0.24650519,663.92,663.5,0.824]
[1746930835457,0.24650519,663.91,663.5,0.824]
[1746930835757,0.24650519,663.92,663.5,0.824]
[1746930835959,1.94906436,663.8,663.5,0.824]
[1746930836359,0.24650519,663.79,663.5,0.824]
[1746930836660,1.94906436,663.8,663.5,0.824]
[1746930836959,0.24656843,663.79,663.5,0.824]
[1746930838761,1.94906436,663.8,663.5,0.824]
[1746930839161,1.941493,663.97,663.5,0.824]
[1746930839462,0.24651688,663.96,663.5,0.824]
[1746930839760,0.24651688,664.29,663.5,0.824]
[1746930842459,0.24651688,664.29,663.51,0.503]
[1746930842660,0.24651688,664.47,663.51,0.503]
[1746930846472,0.30098723,664.48,663.51,0.503]
[1746930846873,0.24651583,664.47,663.51,0.503]
[1746930847276,0.24651583,664.46,663.51,0.503]
[1746930847575,0.24651583,664.45,663.51,0.503]
[1746930847975,0.24651583,664.44,663.51,0.503]
[1746930848168,0.24651583,664.43,663.51,0.503]
[1746930848476,0.24651583,664.43,663.51,0.17345555]
[1746930848775,0.24651583,664.43,663.5,0.824]
[1746930848974,1.94906436,664.09,663.5,0.824]
[1746930849776,0.24651583,664.08,663.5,0.824]
[1746930850080,0.24651583,664.07,663.5,0.824]
[1746930850376,0.24651583,664.06,663.5,0.824]
[1746930850873,1.94906436,663.93,663.5,0.824]
[1746930851177,0.24651583,663.92,663.5,0.824]
[1746930854279,0.24651583,663.92,663.51,0.30142725]
[1746930858984,0.24651583,664.47,663.51,0.30142725]
[1746930859476,0.24651583,664.46,663.51,0.30142725]
[1746930860081,0.24651583,664.45,663.51,0.30142725]
[1746930860382,0.24651583,664.47,663.51,0.30142725]
[1746930860683,1.94906436,664.45,663.51,0.30142725]
[1746930860879,0.24651583,664.44,663.51,0.30142725]
[1746930862479,1.94906436,664.45,663.51,0.30142725]
[1746930862784,0.24640614,664.44,663.51,0.30142725]
[1746930863485,0.24640614,664.47,663.51,0.30142725]
[1746930869588,0.30098723,664.48,663.51,0.30142725]
[1746930869890,0.2463722,664.47,663.51,0.30142725]
[1746930886100,0.2463722,664.46,663.52,0.644]
[1746930886303,0.2463722,664.46,663.54,0.30141362]
[1746930886802,0.2463722,664.45,663.54,0.30141362]
[1746930887102,0.2463722,664.44,663.54,0.30141362]
[1746930887502,0.30098723,664.48,663.54,0.30141362]
[1746930887503,0.2463722,664.47,663.54,0.30141362]
[1746930892708,0.2463722,664.47,663.55,0.592]
[1746930892905,0.2463722,664.47,663.57,0.3014]
[1746930898211,0.30098723,664.48,663.57,0.3014]
[1746930898511,0.24632471,664.47,663.57,0.3014]
[1746930916326,0.24632471,664.46,663.57,0.3014]
[1746930916725,0.24632471,664.45,663.57,0.3014]
[1746930917021,0.24632471,664.44,663.57,0.3014]
[1746930917425,0.24632471,664.43,663.57,0.3014]
[1746930917725,0.24632471,664.42,663.57,0.3014]
[1746930917925,0.24632471,664.41,663.57,0.3014]
[1746930918423,0.24632471,664.4,663.57,0.3014]
[1746930918826,0.24632471,664.39,663.57,0.3014]
[1746930919021,0.24632471,664.38,663.57,0.3014]
[1746930919221,0.24632471,664.47,663.58,0.905]
[1746930919423,0.24632471,664.46,663.58,0.905]
[1746930919827,0.30098723,664.48,663.58,0.905]
[1746930920028,0.24638867,664.47,663.58,0.905]
[1746930920326,0.24638867,664.46,663.58,0.905]
[1746930920522,0.24638867,664.45,663.58,0.905]
[1746930920724,0.24638867,664.44,663.58,0.905]
[1746930921029,0.24638867,664.43,663.58,0.905]
[1746930921223,0.24638867,664.42,663.58,0.905]
[1746930921421,0.24638867,664.41,663.58,0.905]
[1746930921624,0.24638867,664.47,663.58,0.905]
[1746930921928,0.24638867,664.46,663.58,0.905]
[1746930922227,0.24638867,664.45,663.58,0.905]
[1746930922426,0.24638867,664.44,663.58,0.905]
[1746930922626,0.24638867,664.43,663.58,0.905]
[1746930922826,0.24638867,664.42,663.58,0.905]
[1746930923130,0.24638867,664.41,663.58,0.905]
[1746930923329,0.30098723,664.48,663.58,0.905]
[1746930923626,0.24638824,664.47,663.59,0.805]
[1746930923825,0.24638824,664.46,663.59,0.805]
[1746930924026,0.24638824,664.45,663.59,0.805]
[1746930924428,0.24638824,664.44,663.59,0.805]
[1746930924623,0.24638824,664.43,663.59,0.805]
[1746930924826,0.24638824,664.42,663.59,0.805]
[1746930925123,0.24638824,664.41,663.59,0.805]
[1746930925323,0.24638824,664.47,663.59,0.805]
[1746930925529,0.24638824,664.46,663.59,0.805]
[1746930925729,0.24638824,664.45,663.59,0.805]
[1746930925930,0.24638824,664.44,663.59,0.805]
[1746930926131,0.24638824,664.43,663.59,0.805]
[1746930926431,0.24638824,664.42,663.59,0.805]
[1746930926631,0.24638824,664.41,663.59,0.805]
[1746930926932,0.24638824,664.4,663.59,0.805]
[1746930927126,0.24638824,664.39,663.59,0.805]
[1746930927326,0.24638824,664.38,663.59,0.805]
[1746930927530,0.24638824,664.37,663.59,0.805]
[1746930927833,0.24638824,664.36,663.59,0.805]
[1746930928127,0.24638824,664.35,663.6,0.625]
[1746930928433,0.24638824,664.34,663.6,0.625]
[1746930928633,0.24638824,664.33,663.6,0.625]
[1746930928832,0.24638824,664.32,663.6,0.625]
[1746930929028,0.24638824,664.31,663.6,0.625]
[1746930929333,0.24638824,664.3,663.6,0.625]
[1746930929528,0.24638824,664.29,663.6,0.625]
[1746930929733,0.24638824,664.28,663.6,0.625]
[1746930929932,0.24638824,664.27,663.6,0.625]
[1746930930434,1.94906436,664.38,663.6,0.625]
[1746930930633,0.24639441,664.37,663.6,0.625]
[1746930930932,0.24639441,664.36,663.6,0.625]
[1746930931135,0.24639441,664.35,663.6,0.625]
[1746930931328,0.24639441,664.34,663.6,0.625]
[1746930931532,1.94906436,664.37,663.6,0.625]
[1746930931533,0.24639441,664.33,663.6,0.625]
[1746930931728,0.24639441,664.32,663.6,0.625]
[1746930932034,0.24639441,664.31,663.6,0.625]
[1746930932330,0.24639441,664.3,663.6,0.625]
[1746930932527,0.24639441,664.29,663.6,0.625]
[1746930932731,0.24639441,664.36,663.6,0.625]
[1746930933435,1.94906436,664.19,663.6,0.625]
[1746930933634,0.24639441,664.18,663.6,0.625]
[1746930934230,1.94906436,664.19,663.6,0.625]
[1746930934433,0.24646064,664.18,663.6,0.625]
[1746930935033,0.24646064,664.17,663.6,0.625]
[1746930935230,0.24646064,664.18,663.6,0.625]
[1746930935535,0.24646064,664.17,663.6,0.625]
[1746930935834,0.24646064,664.16,663.6,0.625]
[1746930936034,0.24646064,664.15,663.6,0.625]
[1746930936234,0.24646064,664.18,663.6,0.625]
[1746930936433,1.94906436,664.19,663.6,0.625]
[1746930936434,0.24646064,664.17,663.6,0.625]
[1746930936634,0.24646064,664.16,663.6,0.625]
[1746930936934,0.24646064,664.18,663.6,0.625]
[1746930937137,0.24646064,664.17,663.6,0.625]
[1746930937336,0.24646064,664.16,663.6,0.625]
[1746930937637,0.24646064,664.47,663.6,0.625]
[1746930937832,0.24646064,664.15,663.6,0.625]
[1746930938039,0.24646064,664.46,663.6,0.625]
[1746930938336,0.24646064,664.45,663.6,0.625]
[1746930938539,0.24646064,664.44,663.6,0.625]
[1746930938737,0.24646064,664.43,663.6,0.625]
[1746930938938,0.24646064,664.42,663.6,0.625]
[1746930939137,1.94906436,664.37,663.6,0.625]
[1746930939331,0.24646064,664.36,663.6,0.625]
[1746930939535,0.24646064,664.35,663.6,0.625]
[1746930939737,0.24646064,664.34,663.6,0.625]
[1746930939933,0.24646064,664.33,663.6,0.625]
[1746930940238,0.24646064,664.32,663.6,0.625]
[1746930940534,0.24646064,664.31,663.61,0.866]
[1746930940842,1.94906436,664.28,663.61,0.866]
[1746930941139,0.24647014,664.27,663.61,0.866]
[1746930941538,0.24647014,664.26,663.61,0.866]
[1746930941841,0.24647014,664.25,663.61,0.866]
[1746930942440,0.24647014,664.24,663.61,0.866]
[1746930942941,0.24647014,664.23,663.61,0.866]
[1746930943242,0.24647014,664.22,663.61,0.866]
[1746930943542,0.24647014,664.21,663.61,0.866]
[1746930943934,0.24647014,664.31,663.61,0.866]
[1746930945340,0.24647014,664.47,663.61,0.866]
[1746930948344,0.30098723,664.48,663.61,0.866]
[1746930948843,0.24644883,664.47,663.61,0.866]
[1746930949644,0.30098723,664.48,663.61,0.866]
[1746930950044,0.2463994,664.47,663.61,0.866]
[1746930950744,0.2463994,664.47,663.62,0.765]
[1746930950943,0.30098723,664.48,663.62,0.765]
[1746930951246,0.24639943,664.47,663.62,0.765]
[1746930953942,0.24639943,664.47,663.63,0.73]
[1746930954848,0.24639943,664.91,663.63,0.73]
[1746930955042,0.24639943,664.46,663.63,0.73]
[1746930955242,0.24639943,664.91,663.63,0.73]
[1746930955648,0.24639943,664.9,663.63,0.73]
[1746930955849,0.24639943,664.89,663.63,0.73]
[1746930956049,0.26207286,664.96,663.63,0.73]
[1746930956444,0.24640156,664.95,663.63,0.73]
[1746930956750,0.24640156,664.94,663.63,0.73]
[1746930957050,0.24640156,664.93,663.63,0.73]
[1746930957250,0.24640156,664.92,663.63,0.73]
[1746930957547,0.24640156,664.91,663.63,0.73]
[1746930957846,0.26207286,664.96,663.63,0.73]
[1746930957847,0.24640156,664.9,663.63,0.73]
[1746930958051,1.94906436,664.72,663.63,0.73]
[1746930958652,0.24640156,664.71,663.63,0.73]
[1746930959050,0.24640156,664.7,663.63,0.73]
[1746930959350,0.24640156,664.69,663.63,0.73]
[1746930959651,0.24640156,664.68,663.63,0.73]
[1746930959952,0.24640156,664.67,663.63,0.73]
[1746930960148,1.94906436,664.52,663.63,0.73]
[1746930960651,0.24640156,664.51,663.63,0.73]
[1746930960850,0.24640156,664.5,663.63,0.73]
[1746930961146,0.24640156,664.49,663.64,0.972]
[1746930961550,0.24640156,664.48,663.64,0.972]
[1746930961950,0.24640156,664.47,663.64,0.972]
[1746930962150,0.24640156,664.46,663.64,0.972]
[1746930962551,0.24640156,664.45,663.64,0.972]
[1746930962753,1.941493,665.1,663.64,0.972]
[1746930962754,0.24640156,664.44,663.64,0.972]
[1746930963254,0.24640156,664.43,663.64,0.972]
[1746930963654,0.24640156,664.55,663.64,0.972]
[1746930965359,0.24640156,664.74,663.64,0.972]
[1746930965953,0.24640156,664.73,663.64,0.972]
[1746930966157,0.24640156,664.73,663.65,0.66]
[1746930966553,0.24640156,664.72,663.65,0.66]
[1746930966858,0.24640156,664.71,663.65,0.66]
[1746930967259,0.24640156,664.7,663.65,0.66]
[1746930967554,0.24640156,664.69,663.65,0.66]
[1746930968059,0.24640156,664.68,663.65,0.66]
[1746930968359,0.24640156,664.67,663.65,0.66]
[1746930968660,0.24640156,664.66,663.65,0.66]
[1746930968962,0.24640156,664.65,663.65,0.66]
[1746930969259,0.24640156,664.64,663.65,0.66]
[1746930969459,1.94906436,664.78,663.65,0.66]
[1746930969661,0.24632702,664.77,663.65,0.66]
[1746930969859,0.24632702,664.79,663.65,0.66]
[1746930971759,0.26204425,665.19,663.65,0.66]
[1746930972161,0.24631524,665.18,663.65,0.66]
[1746930972561,0.24631524,665.17,663.65,0.66]
[1746930972861,0.24631524,665.16,663.65,0.66]
[1746930973161,0.24631524,665.15,663.65,0.66]
[1746930973461,0.26204425,665.19,663.65,0.66]
[1746930973662,0.2463149,665.18,663.65,0.66]
[1746930974058,0.2463149,665.17,663.65,0.66]
[1746930974364,0.2463149,665.16,663.65,0.66]
[1746930974663,0.2463149,665.15,663.65,0.66]
[1746930974959,0.26198802,665.19,663.65,0.66]
[1746930975363,0.24631748,665.18,663.65,0.66]
[1746930975659,0.24631748,665.17,663.65,0.66]
[1746930975959,0.24631748,665.16,663.65,0.66]
[1746930976263,0.24631748,665.15,663.65,0.66]
[1746930976665,0.24631748,665.14,663.65,0.66]
[1746930976963,0.24631748,665.13,663.65,0.66]
[1746930977259,0.24631748,665.12,663.65,0.66]
[1746930977463,1.94906436,665.37,663.65,0.66]
[1746930977864,0.24631795,665.36,663.65,0.66]
[1746930978163,0.24631795,665.35,663.65,0.66]
[1746930978666,0.24631795,665.34,663.65,0.66]
[1746930978959,0.24631795,665.33,663.65,0.66]
[1746930979263,0.30061174,665.31,663.65,0.66]
[1746930979763,0.24631795,665.3,663.65,0.66]
[1746930979963,0.24631795,665.29,663.65,0.66]
[1746930980264,0.24631795,665.28,663.65,0.66]
[1746930980660,0.24631795,665.27,663.65,0.66]
[1746930980866,1.94906436,664.7,663.65,0.66]
[1746930981471,1.94906436,664.7,663.66,0.952]
[1746930981765,0.24631795,664.69,663.66,0.952]
[1746930981963,0.24631795,664.68,663.66,0.952]
[1746930982261,0.24631795,664.67,663.66,0.952]
[1746930982560,0.24631795,664.69,663.66,0.952]
[1746930983161,0.24631795,664.71,663.66,0.952]
[1746930985067,0.24631795,664.87,663.66,0.952]
[1746930985467,0.54713315,664.86,663.66,0.952]
[1746930985766,0.30081973,664.85,663.66,0.952]
[1746930985967,0.54713768,664.85,663.66,0.952]
[1746930986161,0.24631795,664.84,663.66,0.952]
[1746930986362,0.30082878,664.83,663.66,0.952]
[1746930986565,0.54714673,664.83,663.66,0.952]
[1746930986969,0.54715125,664.82,663.66,0.952]
[1746930987267,0.54715578,664.81,663.66,0.952]
[1746930987569,0.30084235,664.8,663.66,0.952]
[1746930987868,0.24631795,664.79,663.66,0.952]
[1746930988068,0.3008514,664.78,663.66,0.952]
[1746930988669,0.24631795,664.77,663.66,0.952]
[1746930988969,0.54717841,664.76,663.66,0.952]
[1746930989469,0.24631795,664.75,663.66,0.952]
[1746930989771,0.24631795,664.74,663.66,0.952]
[1746930990169,0.24631795,664.75,663.66,0.952]
[1746930991171,0.24631795,664.75,663.67,0.689]
[1746930992771,0.24631795,664.74,663.67,0.689]
[1746930993269,0.24631795,664.73,663.67,0.689]
[1746930993472,0.30086046,664.76,663.67,0.689]
[1746930993773,0.24631559,664.75,663.67,0.689]
[1746930994073,0.24631559,664.74,663.67,0.689]
[1746930994370,0.24631559,664.73,663.67,0.689]
[1746930994874,0.24631559,664.72,663.67,0.689]
[1746930995072,0.24631559,664.71,663.67,0.689]
[1746930995374,0.24631559,664.7,663.67,0.689]
[1746930995573,1.94906436,664.59,663.67,0.689]
[1746930995773,0.24631559,664.58,663.67,0.689]
[1746930996274,0.24631559,664.57,663.67,0.689]
[1746930996680,0.24631559,664.56,663.67,0.689]
[1746930997081,0.24631559,664.55,663.67,0.689]
[1746930997582,0.24631559,664.54,663.67,0.689]
[1746930997779,1.94906436,664.46,663.67,0.689]
[1746930998083,0.24631559,664.45,663.67,0.689]
[1746930998583,0.24631559,664.45,663.68,0.631]
[1746931000378,0.24631559,664.69,663.68,0.631]
[1746931000783,0.24631559,664.68,663.68,0.631]
[1746931001286,0.24631559,664.69,663.68,0.631]
[1746931001584,0.24631559,664.68,663.68,0.631]
[1746931002083,0.24631559,664.67,663.68,0.631]
[1746931002383,0.24631559,664.7,663.68,0.631]
[1746931006185,0.24631559,664.74,663.68,0.631]
[1746931007581,0.24631559,664.73,663.68,0.631]
[1746931007787,1.94906436,664.75,663.68,0.631]
[1746931008288,2.19538563,664.74,663.68,0.631]
[1746931008486,0.24632127,664.73,663.68,0.631]
[1746931008885,0.24632127,664.72,663.68,0.631]
[1746931009285,0.24632127,664.71,663.68,0.631]
[1746931009885,0.24632127,664.7,663.68,1.179]
[1746931010091,0.24632127,664.69,663.68,1.179]
[1746931010391,0.24632127,664.68,663.68,1.179]
[1746931010592,1.94906436,664.62,663.68,1.179]
[1746931011689,0.24632127,664.61,663.68,1.179]
[1746931012395,1.94906436,664.56,663.68,1.179]
[1746931012896,0.24632127,664.55,663.68,1.179]
[1746931013191,0.24632127,664.54,663.68,1.179]
[1746931013494,0.24632127,664.53,663.68,1.179]
[1746931013990,0.24632127,664.52,663.68,1.179]
[1746931014197,0.24632127,664.51,663.68,1.179]
[1746931014791,0.24632127,664.5,663.68,1.179]
[1746931015096,0.24632127,664.49,663.68,1.179]
[1746931015296,1.94906436,664.36,663.68,1.179]
[1746931015491,1.94906436,664.36,663.68,1.822]
[1746931015897,0.24632127,664.35,663.68,1.822]
[1746931017998,0.24632127,664.45,663.68,1.822]
[1746931019999,1.94906436,664.41,663.68,1.822]
[1746931020294,0.24632127,664.4,663.68,1.822]
[1746931022096,0.30086046,664.76,663.68,1.822]
[1746931022295,0.24636509,664.75,663.68,1.822]
[1746931024496,0.24636509,664.74,663.68,1.822]
[1746931024701,0.24636509,664.73,663.68,1.822]
[1746931025097,0.54724365,664.72,663.68,1.822]
[1746931025600,0.54724818,664.71,663.68,1.822]
[1746931026202,0.24636509,664.7,663.68,1.822]
[1746931026403,1.94906436,664.39,663.68,1.822]
[1746931026901,0.24636509,664.38,663.68,1.822]
[1746931027303,0.24636509,664.37,663.68,1.822]
[1746931027598,0.24636509,664.38,663.68,1.822]
[1746931028001,0.24636509,664.37,663.68,1.822]
[1746931028501,0.24636509,664.36,663.68,1.822]
[1746931028903,0.24636509,664.35,663.68,1.822]
[1746931029307,0.24636509,664.34,663.68,1.822]
[1746931029707,0.24636509,664.33,663.68,1.822]
[1746931030206,0.24636509,664.41,663.68,1.822]
[1746931030507,0.24636509,664.4,663.68,1.822]
[1746931030704,1.94906436,664.38,663.68,1.822]
[1746931031207,0.24636509,664.37,663.68,1.822]
[1746931033109,0.30088309,664.71,663.68,1.822]
[1746931033510,0.24636899,664.7,663.68,1.822]
[1746931041815,0.24636899,664.69,663.68,1.822]
[1746931042115,0.24636899,664.68,663.68,1.822]
[1746931042511,0.24636899,664.67,663.68,1.822]
[1746931042917,0.24636899,664.7,663.68,1.822]
[1746931043816,1.94906436,664.65,663.68,1.822]
[1746931044216,0.24636899,664.64,663.68,1.822]
[1746931044717,0.24636899,664.63,663.68,1.822]
[1746931044915,0.24636899,664.62,663.68,1.822]
[1746931045316,0.24636899,664.61,663.68,1.822]
[1746931045817,2.19543335,664.64,663.68,1.822]
[1746931046012,0.24636899,664.63,663.68,1.822]
[1746931046418,0.24636899,664.62,663.68,1.822]
[1746931046717,0.24636899,664.61,663.68,1.822]
[1746931047315,0.24636899,664.63,663.68,1.822]
[1746931047716,0.24636899,664.62,663.68,1.822]
[1746931048111,0.24636899,664.61,663.68,1.822]
[1746931048618,0.24636899,664.62,663.68,1.822]
[1746931049019,0.24636899,664.61,663.68,1.822]
[1746931049319,0.24636899,664.6,663.68,1.822]
[1746931049719,0.24636899,664.59,663.68,1.822]
[1746931050121,0.24636899,664.61,663.68,1.822]
[1746931050520,0.24636899,664.6,663.68,1.822]
[1746931051021,0.24636899,664.61,663.68,1.822]
[1746931051523,1.94906436,664.58,663.68,1.822]
[1746931051918,0.24636899,664.57,663.68,1.822]
[1746931052221,0.24636899,664.56,663.68,1.822]
[1746931052524,0.24636899,664.55,663.68,1.822]
[1746931052822,0.24636899,664.54,663.68,1.822]
[1746931053020,1.94906436,664.51,663.68,1.822]
[1746931053522,0.24636899,664.5,663.68,1.822]
[1746931053923,0.24636899,664.49,663.68,1.822]
[1746931054219,0.24636899,664.48,663.68,1.822]
[1746931054626,0.24636899,664.47,663.68,1.822]
[1746931054824,1.94906436,664.3,663.68,1.822]
[1746931055425,0.24636899,664.29,663.68,1.822]
[1746931056727,1.94906436,664.3,663.68,1.822]
[1746931057129,0.24636545,664.29,663.68,1.822]
[1746931057330,1.94906436,664.16,663.68,1.822]
[1746931057531,1.94906436,664.16,663.68,1.274]
[1746931057730,1.94906436,664.16,663.68,0.631]
[1746931057930,0.24636545,664.15,663.68,0.631]
[1746931059228,0.24636545,664.16,663.68,0.631]
[1746931060832,0.24636545,664.37,663.68,0.631]
[1746931061633,0.24636545,664.37,663.68,1.206]
[1746931063534,0.24636545,664.38,663.68,1.206]
[1746931065135,0.24636545,664.46,663.68,1.206]
[1746931065431,1.94906436,664.47,663.68,1.206]
[1746931065737,0.24635541,664.46,663.68,1.206]
[1746931067038,0.24635541,664.63,663.68,1.206]
[1746931069437,0.24635541,664.7,663.68,1.206]
[1746931073943,1.94906436,664.67,663.68,1.206]
[1746931074543,0.24635541,664.66,663.68,1.206]
[1746931074945,0.24635541,664.65,663.68,1.206]
[1746931075544,0.24635541,664.64,663.68,1.206]
[1746931076044,0.24635541,664.63,663.68,1.206]
[1746931076244,1.94906436,664.56,663.68,1.206]
[1746931076839,0.24635541,664.55,663.68,1.206]
[1746931077243,1.94906436,664.56,663.68,1.206]
[1746931077544,0.24635194,664.55,663.68,1.206]
[1746931077940,0.24635194,664.54,663.68,1.206]
[1746931078347,0.24635194,664.53,663.68,1.206]
[1746931078546,1.94906436,664.37,663.68,1.206]
[1746931079046,0.24635194,664.36,663.68,1.206]
[1746931080648,0.24635194,664.36,663.68,2.068]
[1746931081147,0.24635194,664.7,663.68,2.068]
[1746931082149,0.30088309,664.71,663.68,2.068]
[1746931082650,0.24630208,664.7,663.68,2.068]
[1746931085453,0.30088309,664.71,663.68,2.068]
[1746931085950,0.24629947,664.7,663.68,2.068]
[1746931089653,0.24629947,664.69,663.68,2.068]
[1746931089958,0.24629947,664.68,663.68,2.068]
[1746931090251,0.24629947,664.67,663.68,2.068]
[1746931090859,0.24629947,664.7,663.68,2.068]
[1746931091360,0.30088309,664.71,663.68,2.068]
[1746931091755,0.2463015,664.7,663.68,2.068]
[1746931094355,0.2463015,664.69,663.68,2.068]
[1746931094660,0.2463015,664.68,663.68,2.068]
[1746931095260,0.2463015,664.67,663.68,2.068]
[1746931095560,0.2463015,664.7,663.68,2.068]
[1746931095756,0.2463015,664.69,663.68,2.068]
[1746931096160,0.2463015,664.68,663.68,2.068]
[1746931096462,0.2463015,664.67,663.68,2.068]
[1746931096858,0.2463015,664.7,663.68,2.068]
[1746931097056,0.2463015,664.69,663.68,2.068]
[1746931097354,0.2463015,664.68,663.68,2.068]
[1746931097559,0.30088309,664.71,663.68,2.068]
[1746931097560,0.2463015,664.67,663.68,2.068]
[1746931097960,0.2463015,664.66,663.68,2.068]
[1746931098360,0.2463015,664.65,663.68,2.068]
[1746931098660,0.2463015,664.64,663.68,2.068]
[1746931098960,0.2463015,664.63,663.68,2.068]
[1746931099561,0.2463015,664.62,663.68,2.068]
[1746931100056,0.30088309,664.71,663.68,2.068]
[1746931100261,0.246303,664.61,663.68,2.068]
[1746931100762,0.246303,664.6,663.68,2.068]
[1746931101062,0.246303,664.59,663.68,2.068]
[1746931101461,0.246303,664.58,663.68,2.068]
[1746931101761,0.246303,664.57,663.68,2.068]
[1746931102061,0.246303,664.56,663.68,2.068]
[1746931102457,0.246303,664.55,663.68,2.068]
[1746931102762,0.246303,664.54,663.68,2.068]
[1746931103362,0.246303,664.53,663.68,2.068]
[1746931104258,0.246303,664.52,663.68,2.068]
[1746931104563,0.246303,664.51,663.68,2.068]
[1746931104864,0.246303,664.5,663.68,2.068]
[1746931105163,0.246303,664.49,663.68,2.068]
[1746931105464,0.246303,664.48,663.68,2.068]
[1746931105665,1.94906436,664.46,663.68,2.068]
[1746931106360,0.246303,664.45,663.68,2.068]
[1746931107066,0.246303,664.44,663.68,2.068]
[1746931107465,0.246303,664.43,663.68,2.068]
[1746931107866,0.246303,664.42,663.68,2.068]
[1746931108166,0.246303,664.43,663.68,2.068]
[1746931108466,0.246303,664.42,663.68,2.068]
[1746931108864,0.246303,664.43,663.68,2.068]
[1746931110667,0.246303,664.51,663.68,2.068]
[1746931111070,0.246303,664.5,663.68,2.068]
[1746931111463,1.94906436,664.48,663.68,2.068]
[1746931111767,0.246303,664.47,663.68,2.068]
[1746931113868,0.246303,664.48,663.68,2.068]
[1746931115366,0.246303,664.47,663.68,2.068]
[1746931115576,1.94906436,664.42,663.68,2.068]
[1746931116071,0.246303,664.41,663.68,2.068]
[1746931117668,1.94906436,664.43,663.68,2.068]
[1746931118071,0.24630932,664.42,663.68,2.068]
[1746931119675,0.24630932,664.7,663.68,2.068]
[1746931121776,0.24630932,664.69,663.68,2.068]
[1746931122076,0.24630932,664.68,663.68,2.068]
[1746931122376,0.24630932,664.67,663.68,2.068]
[1746931122675,0.24630932,664.66,663.68,2.068]
[1746931123077,1.94906436,664.52,663.68,2.068]
[1746931123377,0.24630932,664.51,663.68,2.068]
[1746931124377,0.24630932,664.5,663.68,2.068]
[1746931124681,0.24630932,664.51,663.68,2.068]
[1746931125481,0.24630932,664.5,663.68,2.068]
[1746931125881,0.24630932,664.51,663.68,2.068]
[1746931126182,2.19537368,664.5,663.68,2.068]
[1746931126781,0.24630932,664.49,663.68,2.068]
[1746931127182,0.24630932,664.48,663.68,2.068]
[1746931127481,0.24630932,664.49,663.68,2.068]
[1746931127781,0.24630932,664.48,663.68,2.068]
[1746931128076,1.94906436,664.5,663.68,2.068]
[1746931128584,0.24635552,664.49,663.68,2.068]
[1746931128882,1.94906436,664.5,663.68,2.068]
[1746931129082,0.24635731,664.48,663.68,2.068]
[1746931129482,0.24635731,664.47,663.68,2.068]
[1746931129877,1.94906436,664.48,663.68,2.068]
[1746931130281,0.24635731,664.47,663.68,2.068]
[1746931130582,0.24635731,664.46,663.68,2.068]
[1746931130984,0.24635731,664.47,663.68,2.068]
[1746931131284,0.24635731,664.46,663.68,2.068]
[1746931131690,0.24635731,664.45,663.68,2.068]
[1746931131888,0.24635731,664.44,663.68,2.068]
[1746931132191,0.24635731,664.43,663.68,2.068]
[1746931132493,0.24635731,664.49,663.68,2.068]
[1746931132892,0.24635731,664.48,663.68,2.068]
[1746931133293,0.24635731,664.47,663.68,2.068]
[1746931133588,0.24635731,664.46,663.68,2.068]
[1746931134088,0.24635731,664.45,663.68,2.068]
[1746931134492,0.24635731,664.44,663.68,2.068]
[1746931134692,0.24635731,664.43,663.68,2.068]
[1746931135099,0.24635731,664.42,663.68,2.068]